fUST/lending_fUST_20250907
["ID","MTS","AMOUNT","RATE_DAILY","PERIOD"]
[383947614,1757190632805,-480.0,0.00013698,2]
[383947615,1757190632814,-480.0,0.00013698,2]
[383947616,1757190632824,-439.57964417,0.00013698,2]
[383947626,1757190632981,-451.42347328,0.00013698,2]
[383947629,1757190633070,-28.57652672,0.00013698,2]
[383947630,1757190633080,-480.0,0.00013698,2]
[383947631,1757190633089,-204.93,0.00013698,2]
[383947632,1757190633099,-480.0,0.00013698,2]
[383947633,1757190633108,-480.0,0.00013698,2]
[383947634,1757190633117,-120.05279927,0.00013698,2]
[383947635,1757190633129,-359.94720073,0.00013698,2]
[383947636,1757190633139,-480.0,0.00013698,2]
[383947637,1757190633148,-405.910034,0.00013698,2]
[383947638,1757190633157,-480.0,0.00013698,2]
[383947639,1757190633167,-577.6,0.00013698,2]
[383947640,1757190633176,-480.0,0.00013698,2]
[383947641,1757190633185,-480.0,0.00013698,2]
[383947642,1757190633195,-480.0,0.00013698,2]
[383947643,1757190633205,-480.0,0.00013698,2]
[383947644,1757190633214,-480.0,0.00013698,2]
[383947645,1757190633224,-480.0,0.00013698,2]
[383947646,1757190633234,-480.0,0.00013698,2]
[383947647,1757190633243,-480.0,0.00013698,2]
[383947648,1757190633265,-480.0,0.00013698,2]
[383947649,1757190633276,-480.0,0.00013698,2]
[383947650,1757190633286,-480.0,0.00013698,2]
[383947651,1757190633296,-480.0,0.00013698,2]
[383947652,1757190633306,-480.0,0.00013698,2]
[383947653,1757190633316,-480.0,0.00013698,2]
[383947654,1757190633326,-480.0,0.00013698,2]
[383947655,1757190633336,-480.0,0.00013698,2]
[383947656,1757190633345,-480.0,0.00013698,2]
[383947657,1757190633355,-480.0,0.00013698,2]
[383947658,1757190633365,-480.0,0.00013698,2]
[383947659,1757190633376,-480.0,0.00013698,2]
[383947660,1757190633386,-480.0,0.00013698,2]
[383947661,1757190633396,-480.0,0.00013698,2]
[383947662,1757190633406,-480.0,0.00013698,2]
[383947663,1757190633415,-480.0,0.00013698,2]
[383947664,1757190633426,-480.0,0.00013698,2]
[383947665,1757190633436,-480.0,0.00013698,2]
[383947666,1757190633446,-480.0,0.00013698,2]
[383947667,1757190633460,-480.0,0.00013698,2]
[383947668,1757190633469,-480.0,0.00013698,2]
[383947669,1757190633479,-509.77214154,0.00013698,2]
[383947670,1757190633489,-480.0,0.00013698,2]
[383947671,1757190633500,-480.0,0.00013698,2]
[383947672,1757190633510,-480.0,0.00013698,2]
[383947673,1757190633519,-480.0,0.00013698,2]
[383947674,1757190633532,-480.0,0.00013698,2]
[383947675,1757190633542,-480.0,0.00013698,2]
[383947676,1757190633552,-480.0,0.00013698,2]
[383947677,1757190633562,-480.0,0.00013698,2]
[383947678,1757190633571,-480.0,0.00013698,2]
[383947679,1757190633582,-480.0,0.00013698,2]
[383947680,1757190633591,-480.0,0.00013698,2]
[383947681,1757190633601,-480.0,0.00013698,2]
[383947682,1757190633611,-480.0,0.00013698,2]
[383947683,1757190633620,-480.0,0.00013698,2]
[383947684,1757190633630,-480.0,0.00013698,2]
[383947685,1757190633640,-480.0,0.00013698,2]
[383947686,1757190633650,-480.0,0.00013698,2]
[383947687,1757190633660,-480.0,0.00013698,2]
[383947688,1757190633669,-480.0,0.00013698,2]
[383947689,1757190633680,-480.0,0.00013698,2]
[383947690,1757190633690,-480.0,0.00013698,2]
[383947691,1757190633699,-480.0,0.00013698,2]
[383947692,1757190633709,-480.0,0.00013698,2]
[383947693,1757190633719,-480.0,0.00013698,2]
[383947694,1757190633728,-480.0,0.00013698,2]
[383947695,1757190633738,-480.0,0.00013698,2]
[383947696,1757190633747,-480.0,0.00013698,2]
[383947697,1757190633757,-480.0,0.00013698,2]
[383947698,1757190633768,-480.0,0.00013698,2]
[383947699,1757190633778,-500.0,0.00013698,2]
[383947700,1757190633787,-500.0,0.00013698,2]
[383947701,1757190633797,-480.0,0.00013698,2]
[383947702,1757190633807,-480.0,0.00013698,2]
[383947703,1757190633816,-480.0,0.00013698,2]
[383947704,1757190633826,-480.0,0.00013698,2]
[383947705,1757190633836,-480.0,0.00013698,2]
[383947706,1757190633845,-480.0,0.00013698,2]
[383947707,1757190633855,-480.0,0.00013698,2]
[383947708,1757190633865,-480.0,0.00013698,2]
[383947709,1757190633876,-480.0,0.00013698,2]
[383947710,1757190633886,-480.0,0.00013698,2]
[383947711,1757190633896,-480.0,0.00013698,2]
[383947712,1757190633906,-480.0,0.00013698,2]
[383947713,1757190633916,-480.0,0.00013698,2]
[383947714,1757190633925,-480.0,0.00013698,2]
[383947715,1757190633935,-480.0,0.00013698,2]
[383947716,1757190633945,-480.0,0.00013698,2]
[383947717,1757190633955,-480.0,0.00013698,2]
[383947718,1757190633964,-480.0,0.00013698,2]
[383947719,1757190633974,-480.0,0.00013698,2]
[383947720,1757190633984,-480.0,0.00013698,2]
[383947721,1757190633993,-473.40499541,0.00013698,2]
[383947722,1757190634002,-480.0,0.00013698,2]
[383947723,1757190634012,-480.0,0.00013698,2]
[383947724,1757190634021,-485.94,0.00013698,2]
[383947725,1757190634031,-480.0,0.00013698,2]
[383947726,1757190634041,-326.47130793,0.00013698,2]
[383947727,1757190634051,-480.0,0.00013698,2]
[383947728,1757190634061,-512.97430716,0.00013698,2]
[383947729,1757190634071,-480.0,0.00013698,2]
[383947730,1757190634080,-480.0,0.00013698,2]
[383947731,1757190634090,-480.0,0.00013698,2]
[383947732,1757190634100,-480.0,0.00013698,2]
[383947733,1757190634110,-480.0,0.00013698,2]
[383947734,1757190634119,-480.0,0.00013698,2]
[383947735,1757190634129,-412.44666684,0.00013698,2]
[383947736,1757190634161,-67.55333316,0.00013698,2]
[383947737,1757190634171,-480.0,0.00013698,2]
[383947738,1757190634182,-480.0,0.00013698,2]
[383947739,1757190634192,-480.0,0.00013698,2]
[383947740,1757190634201,-116.43696509,0.00013698,2]
[383947758,1757190638416,-1040.4636625,0.00013598,2]
[383947759,1757190638426,-154.81326138,0.00013698,2]
[383947760,1757190638436,-480.0,0.00013698,2]
[383947761,1757190638445,-480.0,0.00013698,2]
[383947762,1757190638457,-480.0,0.00013698,2]
[383947763,1757190638467,-480.0,0.00013698,2]
[383947764,1757190638475,-480.0,0.00013698,2]
[383947765,1757190638484,-480.0,0.00013698,2]
[383947766,1757190638493,-480.0,0.00013698,2]
[383947767,1757190638503,-480.0,0.00013698,2]
[383947768,1757190638512,-480.0,0.00013698,2]
[383947769,1757190638522,-480.0,0.00013698,2]
[383947771,1757190638531,-480.0,0.00013698,2]
[383947772,1757190638540,-480.0,0.00013698,2]
[383947773,1757190638550,-480.0,0.00013698,2]
[383947774,1757190638559,-480.0,0.00013698,2]
[383947775,1757190638569,-480.0,0.00013698,2]
[383947776,1757190638579,-480.0,0.00013698,2]
[383947777,1757190638589,-480.0,0.00013698,2]
[383947778,1757190638600,-480.0,0.00013698,2]
[383947779,1757190638610,-480.0,0.00013698,2]
[383947780,1757190638621,-480.0,0.00013698,2]
[383947781,1757190638631,-480.0,0.00013698,2]
[383947782,1757190638642,-480.0,0.00013698,2]
[383947783,1757190638652,-480.0,0.00013698,2]
[383947784,1757190638662,-480.0,0.00013698,2]
[383947785,1757190638672,-480.0,0.00013698,2]
[383947786,1757190638682,-480.0,0.00013698,2]
[383947787,1757190638693,-480.0,0.00013698,2]
[383947788,1757190638702,-480.0,0.00013698,2]
[383947789,1757190638712,-480.0,0.00013698,2]
[383947790,1757190638722,-480.0,0.00013698,2]
[383947791,1757190638733,-400.0,0.00013698,2]
[383947792,1757190638743,-304.17,0.00013698,2]
[383947793,1757190638752,-480.0,0.00013698,2]
[383947794,1757190638763,-480.0,0.00013698,2]
[383947795,1757190638773,-480.0,0.00013698,2]
[383947796,1757190638783,-480.0,0.00013698,2]
[383947797,1757190638792,-612.52210102,0.00013698,2]
[383947798,1757190638802,-480.0,0.00013698,2]
[383947799,1757190638812,-480.0,0.00013698,2]
[383947800,1757190638822,-480.0,0.00013698,2]
[383947801,1757190638832,-480.0,0.00013698,2]
[383947802,1757190638842,-614.75817372,0.00013698,2]
[383947803,1757190638851,-480.0,0.00013698,2]
[383947804,1757190638861,-369.14919375,0.00013698,2]
[383947805,1757190638871,-480.0,0.00013698,2]
[383947806,1757190638881,-380.76,0.00013698,2]
[383947807,1757190638890,-500.0,0.00013698,2]
[383947808,1757190638900,-797.224785,0.00013699,2]
[383947809,1757190638910,-500.0,0.00013925,2]
[383947810,1757190638919,-500.0,0.00013925,2]
[383947811,1757190638929,-500.0,0.00013925,2]
[383947812,1757190638939,-500.68461369,0.00013925,2]
[383947813,1757190638949,-4010.3433605,0.00013957,2]
[383947814,1757190638957,-500.0,0.00013967,2]
[383947815,1757190638967,-500.0,0.00013969,2]
[383947816,1757190638976,-300.0,0.00013971,2]
[383947817,1757190638986,-300.0,0.00013971,2]
[383947818,1757190638995,-300.0,0.00013971,2]
[383947819,1757190639006,-300.0,0.00013971,2]
[383947820,1757190639015,-300.0,0.00013971,2]
[383947821,1757190639025,-300.0,0.00013971,2]
[383947822,1757190639035,-300.0,0.00013971,2]
[383947823,1757190639044,-300.0,0.00013971,2]
[383947824,1757190639054,-300.0,0.00013971,2]
[383947825,1757190639064,-300.0,0.00013971,2]
[383947826,1757190639074,-300.0,0.00013971,2]
[383947827,1757190639083,-300.0,0.00013971,2]
[383947828,1757190639093,-300.0,0.00013971,2]
[383947829,1757190639103,-300.0,0.00013971,2]
[383947830,1757190639112,-300.0,0.00013971,2]
[383947831,1757190639122,-500.0,0.00013971,2]
[383947832,1757190639132,-350.19844519,0.00013971,2]
[383947833,1757190639142,-637.29505754,0.00013971,2]
[383947834,1757190639152,-640.496275,0.00013971,2]
[383947835,1757190639162,-500.0,0.00013971,2]
[383947836,1757190639171,-500.0,0.00013971,2]
[383947837,1757190639180,-500.0,0.00013971,2]
[383947838,1757190639190,-500.0,0.00013971,2]
[383947839,1757190639200,-500.0,0.00013971,2]
[383947840,1757190639209,-500.0,0.00013971,2]
[383947841,1757190639219,-500.0,0.00013971,2]
[383947842,1757190639228,-295.23928199,0.00013971,2]
[383947843,1757190639237,-500.0,0.00013971,2]
[383947844,1757190639247,-500.0,0.00013971,2]
[383947845,1757190639256,-500.0,0.00013971,2]
[383947846,1757190639266,-338.27354324,0.00013971,2]
[383947847,1757190639275,-500.0,0.00013971,2]
[383947848,1757190639285,-444.44901905,0.00013971,2]
[383947849,1757190639294,-156.41431196,0.00013971,2]
[383947850,1757190639303,-500.0,0.00013971,2]
[383947851,1757190639313,-500.0,0.00013971,2]
[383947852,1757190639322,-500.0,0.00013971,2]
[383947853,1757190639333,-500.0,0.00013971,2]
[383947854,1757190639343,-500.0,0.00013971,2]
[383947855,1757190639352,-500.0,0.00013971,2]
[383947856,1757190639363,-550.23,0.00013972,2]
[383947857,1757190639372,-480.0,0.00013972,2]
[383947858,1757190639384,-480.0,0.00013972,2]
[383947859,1757190639393,-480.0,0.00013972,2]
[383947860,1757190639403,-480.0,0.00013972,2]
[383947861,1757190639413,-480.0,0.00013972,2]
[383947862,1757190639424,-480.0,0.00013972,2]
[383947863,1757190639435,-183.53,0.00013972,2]
[383947864,1757190639446,-480.0,0.00013972,2]
[383947865,1757190639459,-269.32088819,0.00013972,2]
[383947866,1757190639468,-480.0,0.00013972,2]
[383947867,1757190639478,-480.0,0.00013972,2]
[383947868,1757190639487,-480.0,0.00013972,2]
[383947869,1757190639498,-480.0,0.00013972,2]
[383947870,1757190639507,-480.0,0.00013972,2]
[383947871,1757190639517,-480.0,0.00013972,2]
[383947872,1757190639527,-205.06071467,0.00013972,2]
[383947873,1757190639537,-480.0,0.00013972,2]
[383947874,1757190639547,-480.0,0.00013972,2]
[383947875,1757190639557,-331.96996198,0.00013972,2]
[383947876,1757190639570,-148.03003802,0.00013972,2]
[383947877,1757190639580,-480.0,0.00013972,2]
[383947878,1757190639589,-480.0,0.00013972,2]
[383947879,1757190639599,-480.0,0.00013972,2]
[383947880,1757190639609,-590.11,0.00013972,2]
[383947881,1757190639619,-480.0,0.00013972,2]
[383947882,1757190639628,-480.0,0.00013972,2]
[383947883,1757190639638,-480.0,0.00013972,2]
[383947884,1757190639647,-480.0,0.00013972,2]
[383947885,1757190639657,-480.0,0.00013972,2]
[383947886,1757190639667,-178.83363521,0.00013972,2]
[383947887,1757190639676,-480.0,0.00013972,2]
[383947888,1757190639687,-178.93,0.00013972,2]
[383947889,1757190639696,-480.0,0.00013972,2]
[383947890,1757190639706,-480.0,0.00013972,2]
[383947891,1757190639716,-480.0,0.00013972,2]
[383947892,1757190639725,-480.0,0.00013972,2]
[383947893,1757190639735,-500.0,0.00013972,2]
[383947894,1757190639744,-500.0,0.00013972,2]
[383947895,1757190639754,-500.0,0.00014056,2]
[383947896,1757190639763,-500.0,0.00014063,2]
[383947897,1757190639774,-500.0,0.00014096,2]
[383947898,1757190639784,-500.29769054,0.00014096,2]
[383947899,1757190639794,-500.0,0.00014164,2]
[383947900,1757190639804,-500.0,0.00014164,2]
[383947901,1757190639814,-500.0,0.00014186,2]
[383947902,1757190639824,-501.97166031,0.00014221,2]
[383947903,1757190639834,-600.0,0.00014235,2]
[383947904,1757190639843,-500.0,0.00014244,2]
[383947905,1757190639854,-500.0,0.00014245,2]
[383947906,1757190639864,-221.21126856,0.00014246,2]
[383947907,1757190639874,-480.0,0.00014246,2]
[383947908,1757190639884,-480.0,0.00014246,2]
[383947909,1757190639894,-451.54658875,0.00014246,2]
[383947910,1757190639904,-480.0,0.00014246,2]
[383947911,1757190639914,-480.0,0.00014246,2]
[383947912,1757190639924,-480.0,0.00014246,2]
[383947913,1757190639934,-480.0,0.00014246,2]
[383947914,1757190639943,-480.0,0.00014246,2]
[383947915,1757190639953,-254.04938006,0.00014246,2]
[383947917,1757190639965,-57.11061994,0.00014246,2]
[383947918,1757190639975,-1000.0,0.00014473,2]
[383947919,1757190639985,-1000.0,0.00014473,2]
[383947920,1757190639996,-500.0,0.00014519,2]
[383947921,1757190640005,-480.0,0.0001452,2]
[383947922,1757190640015,-480.0,0.0001452,2]
[383947924,1757190640025,-480.0,0.0001452,2]
[383947926,1757190640034,-339.87,0.0001452,2]
[383947928,1757190640044,-480.0,0.0001452,2]
[383947930,1757190640053,-480.0,0.0001452,2]
[383947932,1757190640063,-480.0,0.0001452,2]
[383947934,1757190640073,-232.99021696,0.00014528,2]
[383947937,1757190640083,-846.58554688,0.00014528,2]
[383947939,1757190640093,-160.0,0.00014528,2]
[383947941,1757190640103,-417.15472785,0.00014528,2]
[383947943,1757190640112,-160.0,0.00014528,2]
[383947945,1757190640122,-203.21852024,0.00014528,2]
[383947947,1757190640142,-530.56961759,0.00014528,2]
[383947950,1757190640151,-217.58669629,0.00014528,2]
[383947953,1757190640161,-1000.0,0.00014712,2]
[383947957,1757190640171,-500.0,0.00014793,2]
[383947960,1757190640180,-240.08098566,0.00014794,2]
[383947963,1757190640190,-480.0,0.00014794,2]
[383947966,1757190640201,-480.0,0.00014794,2]
[383947969,1757190640211,-480.0,0.00014794,2]
[383947972,1757190640221,-480.0,0.00014794,2]
[383947975,1757190640230,-480.0,0.00014794,2]
[383947978,1757190640240,-975.0,0.00014855,2]
[383947981,1757190640249,-616.981,0.00014855,2]
[383947985,1757190640258,-2154.0,0.00014855,2]
[383947988,1757190640268,-425.265,0.00014855,2]
[383947991,1757190640278,-1274.46236221,0.00014908,2]
[383947994,1757190640287,-420.0,0.0001501,2]
[383947998,1757190640297,-1500.0,0.00015021,2]
[383948002,1757190640307,-500.0,0.00015021,2]
[383948006,1757190640316,-1200.0,0.00015066,2]
[383948009,1757190640326,-500.0,0.00015067,2]
[383948012,1757190640335,-480.0,0.00015068,2]
[383948015,1757190640345,-480.0,0.00015068,2]
[383948018,1757190640354,-425.23,0.00015068,2]
[383948021,1757190640364,-480.0,0.00015068,2]
[383948024,1757190640374,-372.65323898,0.00015068,2]
[383948027,1757190640383,-747.38701473,0.0001526,2]
[383948030,1757190640393,-480.0,0.00015342,2]
[383948033,1757190640403,-480.0,0.00015342,2]
[383948036,1757190640412,-480.0,0.00015342,2]
[383948039,1757190640421,-500.0,0.00015409,2]
[383948042,1757190640431,-1057.77116852,0.00015569,2]
[383948045,1757190640440,-480.0,0.00015616,2]
[383948048,1757190640450,-480.0,0.00015616,2]
[383948052,1757190640463,-253.57389165,0.00015616,2]
[383948055,1757190640473,-720.0,0.00015658,2]
[383948058,1757190640483,-480.0,0.0001589,2]
[383948061,1757190640492,-480.0,0.0001589,2]
[383948064,1757190640502,-1274.4623622,0.00016156,2]
[383948066,1757190640511,-480.0,0.00016164,2]
[383948070,1757190640520,-480.0,0.00016164,2]
[383948073,1757190640530,-480.0,0.00016438,2]
[383948075,1757190640539,-480.0,0.00016438,2]
[383948078,1757190640549,-587.0,0.0001645,2]
[383948081,1757190640558,-164.759,0.000167,2]
[383948084,1757190640568,-480.0,0.00016712,2]
[383948088,1757190640578,-480.0,0.00016712,2]
[383948090,1757190640587,-467.17056365,0.00016986,2]
[383948093,1757190640596,-480.0,0.00016986,2]
[383948097,1757190640606,-864.0,0.00017224,2]
[383948100,1757190640616,-480.0,0.0001726,2]
[383948103,1757190640625,-1274.4623622,0.00017404,2]
[383948106,1757190640635,-480.0,0.00017534,2]
[383948109,1757190640644,-480.0,0.00017808,2]
[383948111,1757190640653,-975.0,0.00017855,2]
[383948114,1757190640663,-262.06527381,0.00017855,2]
[383948541,1757190644079,-989.11988135,0.00015758,2]
[383948542,1757190644090,-51.34378112,0.00015758,2]
[383948543,1757190644099,-774.05417888,0.00017855,2]
[383948556,1757190646907,-480.0,0.00013698,2]
[383948557,1757190646917,-391.84501054,0.00017855,2]
[383948669,1757190768084,-1000.0,0.00018595,20]
[383948674,1757191246943,300.0,0.00013158,2]
[383948677,1757191431023,480.0,0.00024657,120]
[383948703,1757191832699,-211.6285229,0.00013287,2]
[383948730,1757191833212,-150.65108884,0.00013462,2]
[383948733,1757191833226,-730.49784672,0.00013462,2]
[383948735,1757191833235,-1200.0,0.00013697,2]
[383948737,1757191833245,-101.66585429,0.00013698,2]
[383948739,1757191833257,-378.33414571,0.00013698,2]
[383948741,1757191833267,-480.0,0.00013698,2]
[383948743,1757191833276,-480.0,0.00013698,2]
[383948744,1757191833286,-480.0,0.00013698,2]
[383948745,1757191833296,-480.0,0.00013698,2]
[383948746,1757191833305,-196.67,0.00013698,2]
[383948747,1757191833315,-554.79,0.00013698,2]
[383948748,1757191833324,-480.0,0.00013698,2]
[383948749,1757191833334,-480.0,0.00013698,2]
[383948750,1757191833344,-480.0,0.00013698,2]
[383948751,1757191833354,-480.0,0.00013698,2]
[383948752,1757191833363,-480.0,0.00013698,2]
[383948753,1757191833373,-480.0,0.00013698,2]
[383948754,1757191833383,-480.0,0.00013698,2]
[383948755,1757191833393,-523.83,0.00013698,2]
[383948756,1757191833402,-543.91,0.00013698,2]
[383948757,1757191833412,-480.0,0.00013698,2]
[383948758,1757191833422,-480.0,0.00013698,2]
[383948759,1757191833432,-480.0,0.00013698,2]
[383948760,1757191833441,-480.0,0.00013698,2]
[383948761,1757191833452,-480.0,0.00013698,2]
[383948762,1757191833461,-480.0,0.00013698,2]
[383948763,1757191833471,-480.0,0.00013698,2]
[383948764,1757191833482,-480.0,0.00013698,2]
[383948765,1757191833492,-480.0,0.00013698,2]
[383948766,1757191833501,-480.0,0.00013698,2]
[383948767,1757191833511,-480.0,0.00013698,2]
[383948768,1757191833521,-480.0,0.00013698,2]
[383948769,1757191833531,-480.0,0.00013698,2]
[383948770,1757191833542,-617.07,0.00013698,2]
[383948771,1757191833551,-480.0,0.00013698,2]
[383948772,1757191833564,-480.0,0.00013698,2]
[383948773,1757191833573,-480.0,0.00013698,2]
[383948774,1757191833582,-480.0,0.00013698,2]
[383948775,1757191833592,-480.0,0.00013698,2]
[383948776,1757191833602,-480.0,0.00013698,2]
[383948777,1757191833611,-480.0,0.00013698,2]
[383948778,1757191833621,-304.83,0.00013698,2]
[383948779,1757191833630,-480.0,0.00013698,2]
[383948780,1757191833640,-480.0,0.00013698,2]
[383948781,1757191833649,-480.0,0.00013698,2]
[383948782,1757191833659,-480.0,0.00013698,2]
[383948783,1757191833668,-480.0,0.00013698,2]
[383948784,1757191833678,-480.0,0.00013698,2]
[383948785,1757191833687,-480.0,0.00013698,2]
[383948786,1757191833697,-480.0,0.00013698,2]
[383948787,1757191833706,-480.0,0.00013698,2]
[383948788,1757191833716,-480.0,0.00013698,2]
[383948789,1757191833726,-480.0,0.00013698,2]
[383948790,1757191833736,-223.99,0.00013698,2]
[383948791,1757191833746,-480.0,0.00013698,2]
[383948792,1757191833756,-480.0,0.00013698,2]
[383948793,1757191833766,-480.0,0.00013698,2]
[383948794,1757191833776,-539.2,0.00013698,2]
[383948795,1757191833786,-480.0,0.00013698,2]
[383948796,1757191833796,-621.31,0.00013698,2]
[383948797,1757191833805,-480.0,0.00013698,2]
[383948798,1757191833815,-480.0,0.00013698,2]
[383948799,1757191833824,-353.68286026,0.00013698,2]
[383948800,1757191833834,-480.0,0.00013698,2]
[383948801,1757191833848,-480.0,0.00013698,2]
[383948802,1757191833857,-480.0,0.00013698,2]
[383948803,1757191833867,-480.0,0.00013698,2]
[383948804,1757191833876,-500.0,0.00013698,2]
[383948805,1757191833886,-500.0,0.00013698,2]
[383948806,1757191833897,-500.0,0.00013698,2]
[383948807,1757191833907,-480.0,0.00013698,2]
[383948808,1757191833916,-500.0,0.00013698,2]
[383948809,1757191833926,-480.0,0.00013698,2]
[383948810,1757191833935,-480.0,0.00013698,2]
[383948811,1757191833945,-480.0,0.00013698,2]
[383948812,1757191833955,-480.0,0.00013698,2]
[383948813,1757191833965,-480.0,0.00013698,2]
[383948814,1757191833975,-480.0,0.00013698,2]
[383948815,1757191833984,-480.0,0.00013698,2]
[383948816,1757191833993,-480.0,0.00013698,2]
[383948817,1757191834002,-480.0,0.00013698,2]
[383948818,1757191834012,-508.87,0.00013698,2]
[383948819,1757191834021,-158.21440129,0.00013698,2]
[383948820,1757191834030,-480.0,0.00013698,2]
[383948821,1757191834039,-480.0,0.00013698,2]
[383948822,1757191834048,-480.0,0.00013698,2]
[383948823,1757191834057,-480.0,0.00013698,2]
[383948824,1757191834067,-520.63,0.00013698,2]
[383948825,1757191834077,-480.0,0.00013698,2]
[383948826,1757191834087,-480.0,0.00013698,2]
[383948827,1757191834097,-480.0,0.00013698,2]
[383948828,1757191834107,-480.0,0.00013698,2]
[383948829,1757191834116,-480.0,0.00013698,2]
[383948830,1757191834125,-480.0,0.00013698,2]
[383948831,1757191834135,-480.0,0.00013698,2]
[383948832,1757191834144,-480.0,0.00013698,2]
[383948833,1757191834154,-480.0,0.00013698,2]
[383948834,1757191834163,-480.0,0.00013698,2]
[383948835,1757191834174,-527.58,0.00013698,2]
[383948836,1757191834185,-480.0,0.00013698,2]
[383948837,1757191834195,-480.0,0.00013698,2]
[383948838,1757191834206,-480.0,0.00013698,2]
[383948839,1757191834215,-480.0,0.00013698,2]
[383948840,1757191834225,-480.0,0.00013698,2]
[383948841,1757191834235,-480.0,0.00013698,2]
[383948842,1757191834244,-480.0,0.00013698,2]
[383948843,1757191834253,-480.0,0.00013698,2]
[383948844,1757191834263,-480.0,0.00013698,2]
[383948845,1757191834273,-480.0,0.00013698,2]
[383948846,1757191834283,-480.0,0.00013698,2]
[383948847,1757191834292,-480.0,0.00013698,2]
[383948848,1757191834302,-480.0,0.00013698,2]
[383948849,1757191834311,-328.74041096,0.00013698,2]
[383948850,1757191834325,-151.25958904,0.00013698,2]
[383948851,1757191834334,-275.18041096,0.00013698,2]
[383948856,1757191838640,-204.81958904,0.00013698,2]
[383948857,1757191838651,-480.0,0.00013698,2]
[383948858,1757191838661,-480.0,0.00013698,2]
[383948859,1757191838674,-480.0,0.00013698,2]
[383948860,1757191838685,-521.91480768,0.00013698,2]
[383948861,1757191838695,-234.08014877,0.00013698,2]
[383948862,1757191838705,-208.8125183,0.00013698,2]
[383948863,1757191838717,-271.1874817,0.00013698,2]
[383948864,1757191838727,-480.0,0.00013698,2]
[383948865,1757191838737,-480.0,0.00013698,2]
[383948866,1757191838747,-480.0,0.00013698,2]
[383948868,1757191838756,-313.89800056,0.00013698,2]
[383948869,1757191838766,-480.0,0.00013698,2]
[383948870,1757191838776,-480.0,0.00013698,2]
[383948871,1757191838785,-480.0,0.00013698,2]
[383948872,1757191838795,-480.0,0.00013698,2]
[383948873,1757191838804,-480.0,0.00013698,2]
[383948874,1757191838814,-480.0,0.00013698,2]
[383948875,1757191838824,-354.50115344,0.00013698,2]
[383948876,1757191838833,-480.0,0.00013698,2]
[383948877,1757191838843,-552.36,0.00013698,2]
[383948878,1757191838852,-480.0,0.00013698,2]
[383948879,1757191838861,-480.0,0.00013698,2]
[383948880,1757191838871,-480.0,0.00013698,2]
[383948881,1757191838881,-480.0,0.00013698,2]
[383948882,1757191838890,-480.0,0.00013698,2]
[383948883,1757191838900,-480.0,0.00013698,2]
[383948884,1757191838911,-480.0,0.00013698,2]
[383948885,1757191838920,-480.0,0.00013698,2]
[383948886,1757191838930,-480.0,0.00013698,2]
[383948887,1757191838939,-480.0,0.00013698,2]